bitfinex-derivatives/quotes_BNBF0:USTF0_20250617
["timestamp","ask_amount","ask_price","bid_price","bid_amount"]
[1750151184549,1.13830018,657.18,656.93,0.994]
[1750151184550,2.831225,657.1,656.93,0.994]
[1750151184750,2.831225,657.09,656.93,0.994]
[1750151185048,1.13830018,657.18,656.93,0.994]
[1750151185049,2.831225,657.08,656.93,0.994]
[1750151185249,2.831225,657.07,656.93,0.994]
[1750151185450,1.55096285,657.06,656.93,0.994]
[1750151185745,0.99291375,657.05,656.93,0.994]
[1750151185946,0.99291375,657.04,656.93,0.994]
[1750151186149,0.99291375,657.03,656.93,0.994]
[1750151186349,1.13830018,657.19,656.93,0.994]
[1750151186546,2.83096015,657.18,656.93,0.994]
[1750151186745,1.13830018,657.19,656.94,1.206]
[1750151186746,2.83096015,657.17,656.94,1.206]
[1750151186946,2.83096015,657.16,656.94,1.206]
[1750151187249,2.83096015,657.15,656.94,1.206]
[1750151187449,2.83096015,657.14,656.94,1.206]
[1750151187649,2.83096015,657.13,656.94,1.206]
[1750151187847,2.83096015,657.12,656.94,1.206]
[1750151188047,2.83096015,657.11,656.94,1.206]
[1750151188248,2.83096015,657.1,656.94,1.206]
[1750151188452,0.99282205,657.09,656.94,1.206]
[1750151188753,2.83121112,657.28,656.94,1.206]
[1750151188953,2.83121112,657.27,656.94,1.206]
[1750151189153,2.83121112,657.26,656.95,1.303]
[1750151189454,1.13830018,657.29,656.95,1.303]
[1750151189455,2.8313757,657.25,656.95,1.303]
[1750151189651,2.8313757,657.24,656.95,1.303]
[1750151189855,2.8313757,657.23,656.95,1.303]
[1750151190054,2.8313757,657.22,656.95,1.303]
[1750151190255,2.8313757,657.21,656.95,1.303]
[1750151190455,2.8313757,657.2,656.95,1.303]
[1750151190656,2.8313757,657.19,656.95,1.303]
[1750151190856,2.8313757,657.18,656.95,1.303]
[1750151191154,2.8313757,657.17,656.95,1.303]
[1750151191358,2.8313757,657.16,656.95,1.303]
[1750151191656,2.8313757,657.15,656.95,1.303]
[1750151191853,2.8313757,657.14,656.95,1.303]
[1750151192053,2.83158072,657.13,656.95,1.303]
[1750151192358,0.99238814,657.12,656.95,1.303]
[1750151192555,2.83096498,657.23,656.95,1.303]
[1750151192753,2.83096498,657.22,656.95,1.303]
[1750151192954,2.83096498,657.21,656.95,1.303]
[1750151193261,0.99238814,657.2,656.95,1.303]
[1750151193454,0.99238814,657.3,656.93,0.994]
[1750151193654,0.99221288,657.29,656.93,0.994]
[1750151193855,0.99221288,657.28,656.93,0.994]
[1750151194060,0.99221288,657.3,656.93,0.994]
[1750151194360,0.99221288,657.29,656.93,0.994]
[1750151194658,0.99221288,657.28,656.93,0.994]
[1750151194855,0.8217876,657.31,656.93,0.994]
[1750151195057,0.2648553,657.31,656.93,0.994]
[1750151201060,0.2648553,657.31,656.9,0.984]
[1750151202260,0.2648553,657.31,656.75,1.13928498]
[1750151203969,0.2648553,657.31,656.74,1.13928498]
[1750151204466,0.2648553,657.31,656.75,1.035]
[1750151208263,0.2648553,657.31,656.75,2.17428498]
[1750151208667,0.98911446,657.5,656.76,1.13928498]
[1750151208965,0.26480592,657.42,656.76,1.13928498]
[1750151209165,0.26480592,657.42,656.78,1.13928498]
[1750151209563,0.26480592,657.42,656.77,1.13928498]
[1750151209871,0.26480592,657.42,656.78,1.13928498]
[1750151210068,0.26480592,657.42,656.75,1.035]
[1750151210069,0.26480592,657.42,656.79,1.13928498]
[1750151210264,0.26480592,657.42,656.8,1.13928498]
[1750151211271,0.26480592,657.42,656.79,1.13928498]
[1750151212665,0.26480592,657.42,656.81,1.13928498]
[1750151213068,0.26480592,657.42,656.8,1.13928498]
[1750151213770,0.26480592,657.42,656.76,1.13928498]
[1750151214474,0.26480592,657.42,656.77,1.13928498]
[1750151214667,0.26480592,657.42,656.76,1.13928498]
[1750151214867,0.26480592,657.42,656.75,2.17428498]
[1750151215069,0.26480592,657.42,656.75,1.035]
[1750151215667,0.26480592,657.42,656.77,1.13928498]
[1750151216472,0.26480592,657.42,656.76,1.13928498]
[1750151217971,0.26480592,657.42,656.75,1.035]
[1750151219773,0.98750073,657.41,656.75,1.035]
[1750151219974,2.12512097,657.4,656.75,1.035]
[1750151220176,2.81767989,657.39,656.75,1.035]
[1750151220376,1.13762024,657.37,656.75,1.035]
[1750151220585,0.98536054,657.36,656.75,1.035]
[1750151220871,0.98536054,657.35,656.75,1.035]
[1750151221074,1.83013579,657.36,656.75,1.035]
[1750151221272,0.98536403,657.35,656.75,1.035]
[1750151221474,0.98536403,657.34,656.75,1.035]
[1750151221670,0.98536403,657.33,656.75,1.035]
[1750151221871,2.81549982,657.34,656.75,1.035]
[1750151222077,2.81549982,657.33,656.75,1.035]
[1750151222376,2.81549982,657.32,656.75,1.035]
[1750151222577,2.81549982,657.31,656.75,1.035]
[1750151222878,2.81549982,657.3,656.75,1.035]
[1750151223175,2.8151844,657.29,656.75,1.035]
[1750151223371,2.8151844,657.28,656.75,1.035]
[1750151223574,2.8151844,657.27,656.75,1.035]
[1750151223776,2.8151844,657.26,656.75,1.035]
[1750151223971,2.8151844,657.25,656.75,1.035]
[1750151224177,2.8151844,657.24,656.75,1.035]
[1750151224379,2.8151844,657.23,656.75,1.035]
[1750151224671,2.8151844,657.22,656.75,1.035]
[1750151224874,1.53962394,657.21,656.75,1.035]
[1750151225077,2.81536062,657.34,656.75,1.035]
[1750151225274,1.53962394,657.33,656.75,1.035]
[1750151225477,0.98536403,657.32,656.75,1.035]
[1750151225678,1.53962394,657.32,656.75,1.035]
[1750151225978,2.81579104,657.34,656.75,1.035]
[1750151226274,2.81579104,657.33,656.75,1.035]
[1750151226478,2.81579104,657.32,656.75,1.035]
[1750151226679,2.81579104,657.31,656.75,1.035]
[1750151226875,2.81579104,657.3,656.75,1.035]
[1750151227179,2.81579104,657.29,656.75,1.035]
[1750151227375,2.81579104,657.28,656.75,1.035]
[1750151227580,2.81579104,657.27,656.75,1.035]
[1750151227777,2.81579104,657.26,656.75,1.035]
[1750151228077,2.81579104,657.25,656.75,1.035]
[1750151228281,2.81579104,657.24,656.75,1.035]
[1750151228478,1.53999768,657.23,656.75,1.035]
[1750151228677,2.81639941,657.37,656.75,1.035]
[1750151228877,1.54018212,657.36,656.75,1.035]
[1750151229077,0.98560587,657.35,656.75,1.035]
[1750151229300,0.98560587,657.34,656.75,1.035]
[1750151229576,0.98560587,657.35,656.75,1.035]
[1750151229781,0.98560587,657.34,656.75,1.035]
[1750151230077,0.98560587,657.35,656.75,1.035]
[1750151230276,0.98560587,657.34,656.75,1.035]
[1750151230477,0.98560587,657.35,656.75,1.035]
[1750151230680,0.98560587,657.34,656.75,1.035]
[1750151230881,0.98560587,657.35,656.75,1.035]
[1750151231084,0.55457626,657.36,656.75,1.035]
[1750151231288,0.98597232,657.35,656.75,1.035]
[1750151231487,2.81684728,657.36,656.75,1.035]
[1750151231684,2.81684728,657.35,656.75,1.035]
[1750151231888,2.81684728,657.34,656.75,1.035]
[1750151232085,2.81684728,657.33,656.75,1.035]
[1750151232285,2.81684728,657.32,656.75,1.035]
[1750151232494,2.81684728,657.31,656.75,1.035]
[1750151232690,2.81684728,657.3,656.75,1.035]
[1750151232890,2.81684728,657.29,656.75,1.035]
[1750151233090,2.81684728,657.28,656.75,1.035]
[1750151233289,2.81684728,657.27,656.75,1.035]
[1750151233492,2.81684728,657.26,656.75,1.035]
[1750151233691,2.81684728,657.25,656.75,1.035]
[1750151233889,2.81684728,657.24,656.75,1.035]
[1750151234095,1.5405753,657.23,656.75,1.035]
[1750151234288,2.81690317,657.36,656.75,1.035]
[1750151234490,2.81693468,657.35,656.75,1.035]
[1750151234695,2.81693468,657.34,656.75,1.035]
[1750151234890,2.81693468,657.33,656.75,1.035]
[1750151235088,2.81693468,657.32,656.75,1.035]
[1750151235289,2.81693468,657.31,656.76,0.864]
[1750151235490,2.81693468,657.3,656.76,0.864]
[1750151235690,2.81693468,657.29,656.76,0.864]
[1750151235892,2.81693468,657.28,656.76,0.864]
[1750151236095,2.81693468,657.27,656.76,0.864]
[1750151236401,2.81693468,657.26,656.76,0.864]
[1750151236690,2.81693468,657.25,656.76,0.864]
[1750151236894,2.81693468,657.24,656.76,0.864]
[1750151237097,0.98600705,657.23,656.76,0.864]
[1750151237299,2.81705525,657.37,656.76,0.864]
[1750151237491,1.54068903,657.36,656.76,0.864]
[1750151237691,0.98604833,657.35,656.76,0.864]
[1750151239192,0.98604833,657.34,656.76,0.864]
[1750151239490,0.98604833,657.35,656.76,0.864]
[1750151239695,0.98604833,657.34,656.77,0.843]
[1750151239992,0.98610431,657.33,656.77,0.843]
[1750151240205,2.81721483,657.33,656.77,0.843]
[1750151240409,2.26254268,657.32,656.77,0.843]
[1750151240598,2.81726364,657.31,656.77,0.843]
[1750151240896,1.13762024,657.36,656.77,0.843]
[1750151240897,2.81726364,657.3,656.77,0.843]
[1750151241095,2.81726364,657.29,656.77,0.843]
[1750151241293,2.81726364,657.28,656.77,0.843]
[1750151241495,1.13762024,657.36,656.77,0.843]
[1750151241496,2.81726364,657.27,656.77,0.843]
[1750151241698,2.81726364,657.26,656.77,0.843]
[1750151241892,2.81726364,657.25,656.77,0.843]
[1750151242224,1.13762024,657.36,656.77,0.843]
[1750151242398,2.12393784,657.35,656.77,0.843]
[1750151242593,2.81782371,657.34,656.77,0.843]
[1750151242793,1.54110887,657.33,656.77,0.843]
[1750151242995,0.98630894,657.32,656.77,0.843]
[1750151243192,0.98630894,657.31,656.77,0.843]
[1750151243396,0.98630894,657.32,656.77,0.843]
[1750151243593,1.54109617,657.32,656.77,0.843]
[1750151244701,0.55478723,657.32,656.77,0.843]
[1750151244995,1.83150207,657.32,656.77,0.843]
[1750151245201,0.98630894,657.31,656.77,0.843]
[1750151245501,0.98630894,657.32,656.77,0.843]
[1750151245795,0.98635358,657.31,656.77,0.843]
[1750151246000,2.81788075,657.32,656.77,0.843]
[1750151246197,2.81788075,657.31,656.77,0.843]
[1750151246397,2.81788075,657.3,656.77,0.843]
[1750151246598,2.81793117,657.29,656.77,0.843]
[1750151246898,2.81793189,657.28,656.77,0.843]
[1750151247102,2.81792846,657.27,656.77,0.843]
[1750151247300,2.81792846,657.26,656.77,0.843]
[1750151247500,2.81792846,657.25,656.77,0.843]
[1750151247698,2.81792846,657.24,656.77,0.843]
[1750151247904,2.81792846,657.23,656.77,0.843]
[1750151248106,1.54116591,657.22,656.77,0.843]
[1750151248404,2.81800399,657.35,656.77,0.843]
[1750151248600,0.98635358,657.34,656.77,0.843]
[1750151248905,2.81803088,657.36,656.77,0.843]
[1750151249201,1.5411975,657.35,656.78,1.061]
[1750151249402,0.98635358,657.34,656.78,1.061]
[1750151250700,1.5411975,657.34,656.78,1.061]
[1750151250905,1.5411975,657.35,656.78,1.061]
[1750151251102,0.98635358,657.34,656.78,1.061]
[1750151251808,1.82834517,657.34,656.78,1.061]
[1750151252105,2.81474182,657.35,656.78,1.061]
[1750151252309,2.81474182,657.34,656.78,1.061]
[1750151252518,2.81474182,657.33,656.78,1.061]
[1750151252712,2.81474182,657.32,656.78,1.061]
[1750151252907,2.81474182,657.31,656.78,1.061]
[1750151253106,2.81474182,657.3,656.78,1.061]
[1750151253310,2.81474182,657.29,656.78,1.061]
[1750151253511,2.81474182,657.28,656.78,1.061]
[1750151253807,2.81474182,657.27,656.78,1.061]
[1750151254014,1.54099779,657.26,656.78,1.061]
[1750151254313,0.98635358,657.39,656.78,1.061]
[1750151254515,0.98635358,657.38,656.78,1.061]
[1750151254708,0.98635358,657.37,656.78,1.061]
[1750151254908,1.54124071,657.38,656.78,1.061]
[1750151255407,2.81551974,657.38,656.78,1.061]
[1750151255617,2.81551974,657.37,656.78,1.061]
[1750151255808,2.81551974,657.36,656.78,1.061]
[1750151256014,2.81551974,657.35,656.78,1.061]
[1750151256208,2.81551974,657.34,656.78,1.061]
[1750151256412,2.81551974,657.33,656.78,1.061]
[1750151256609,2.81551974,657.32,656.78,1.061]
[1750151256810,2.81551974,657.31,656.78,1.061]
[1750151257009,2.81551974,657.3,656.78,1.061]
[1750151257215,2.81568076,657.29,656.78,1.061]
[1750151257415,2.81568076,657.28,656.78,1.061]
[1750151257713,1.54124071,657.27,656.78,1.061]
[1750151257914,2.8158212,657.4,656.78,1.061]
[1750151258114,1.54124071,657.39,656.78,1.061]
[1750151259014,0.98635358,657.38,656.78,1.061]
[1750151259215,1.54124071,657.39,656.78,1.061]
[1750151259510,0.55488713,657.39,656.78,1.061]
[1750151259711,1.54124071,657.39,656.78,1.061]
[1750151259915,1.54124071,657.4,656.78,1.061]
[1750151260113,2.81566312,657.41,656.78,1.061]
[1750151260313,1.54124071,657.4,656.78,1.061]
[1750151261223,1.54124071,657.4,656.79,1.439]
[1750151261722,1.54134,657.4,656.79,1.439]
[1750151262830,1.54098175,657.4,656.79,1.439]
[1750151263120,0.98599582,657.39,656.79,1.439]
[1750151263321,1.54098175,657.4,656.79,1.439]
[1750151263717,2.81541587,657.41,656.79,1.439]
[1750151263915,1.54098175,657.4,656.79,1.439]
[1750151264120,2.81541587,657.4,656.79,1.439]
[1750151264318,2.81541587,657.39,656.79,1.439]
[1750151264518,2.81541587,657.38,656.79,1.439]
[1750151264824,2.81541587,657.37,656.79,1.439]
[1750151265018,2.81541587,657.36,656.79,1.439]
[1750151265223,2.81541587,657.35,656.79,1.439]
[1750151265519,0.98599582,657.34,656.79,1.439]
[1750151265719,0.26480592,657.42,656.79,1.439]
[1750151266019,0.26480592,657.42,656.8,0.973]
[1750151266822,3.08088872,657.42,656.8,0.973]
[1750151267019,2.8160828,657.41,656.8,0.973]
[1750151267226,0.26480592,657.42,656.8,0.973]
[1750151272627,3.08131734,657.42,656.8,0.973]
[1750151272826,2.81651142,657.41,656.8,0.973]
[1750151273027,1.83005876,657.4,656.8,0.973]
[1750151273228,0.55521682,657.4,656.8,0.973]
[1750151273430,0.26480592,657.42,656.8,0.973]
[1750151274827,1.25196903,657.42,656.8,0.973]
[1750151275028,0.26480592,657.42,656.8,0.973]
[1750151275825,0.26480592,657.42,656.81,0.9]
[1750151278429,3.08362201,657.42,656.81,0.9]
[1750151278630,2.81881609,657.41,656.81,0.9]
[1750151278926,1.83162484,657.4,656.81,0.9]
[1750151279132,0.55563219,657.4,656.81,0.9]
[1750151279330,1.13410904,657.34,656.81,0.9]
[1750151279526,0.98719125,657.33,656.81,0.9]
[1750151279730,1.13410904,657.31,656.81,0.9]
[1750151279931,0.98719125,657.3,656.81,0.9]
[1750151280127,0.98669651,657.29,656.81,0.9]
[1750151280352,0.98669651,657.28,656.81,0.9]
[1750151280531,1.13410904,657.22,656.81,0.9]
[1750151280833,0.98669651,657.21,656.81,0.9]
[1750151281028,0.98669651,657.2,656.81,0.9]
[1750151281237,0.98669651,657.19,656.81,0.9]
[1750151281425,0.98669651,657.18,656.81,0.9]
[1750151281631,0.98669651,657.17,656.81,0.9]
[1750151281931,1.50235083,657.37,656.82,1.034]
[1750151281932,3.95174961,657.18,656.82,1.034]
[1750151282232,2.81764057,657.17,656.82,1.034]
[1750151282431,0.55563219,657.16,656.82,1.034]
[1750151282632,2.81712528,657.16,656.82,1.034]
[1750151282831,2.81712528,657.15,656.82,1.034]
[1750151283027,2.81712528,657.14,656.82,1.034]
[1750151283333,2.81712528,657.13,656.82,1.034]
[1750151283533,2.81712528,657.12,656.82,1.034]
[1750151283734,2.81712528,657.11,656.82,1.034]
[1750151283934,2.81712528,657.1,656.82,1.034]
[1750151284131,2.81712528,657.09,656.82,1.034]
[1750151284333,2.81712528,657.08,656.82,1.034]
[1750151284534,1.54181341,657.07,656.82,1.034]
[1750151284738,1.54181341,657.15,656.82,1.034]
[1750151284933,0.5551169,657.15,656.82,1.034]
[1750151285134,1.13410904,657.16,656.82,1.034]
[1750151285339,1.13416748,657.16,656.82,1.034]
[1750151286633,1.13416748,657.17,656.82,1.034]
[1750151286835,0.98766551,657.16,656.82,1.034]
[1750151287036,1.83309601,657.16,656.82,1.034]
[1750151287235,1.54253355,657.16,656.82,1.034]
[1750151287433,2.82062607,657.16,656.82,1.034]
[1750151287638,1.5423981,657.15,656.82,1.034]
[1750151287935,0.55473259,657.15,656.82,1.034]
[1750151288137,1.54202184,657.15,656.82,1.034]
[1750151288343,0.55467895,657.15,656.82,1.034]
[1750151288637,1.13416748,657.19,656.82,1.034]
[1750151289138,1.13416748,657.18,656.82,1.034]
[1750151289841,1.13416748,657.13,656.82,1.034]
[1750151290638,2.81948701,657.14,656.82,1.034]
[1750151290840,2.81948701,657.13,656.82,1.034]
[1750151291038,2.81932899,657.12,656.82,1.034]
[1750151291241,2.81932899,657.11,656.82,1.034]
[1750151291540,0.98734289,657.1,656.82,1.034]
[1750151291742,2.81945731,657.23,656.82,1.034]
[1750151292045,2.81945731,657.22,656.82,1.034]
[1750151292243,2.81945731,657.21,656.82,1.034]
[1750151292539,1.83211442,657.2,656.83,1.351]
[1750151292741,1.13416748,657.21,656.83,1.351]
[1750151293147,1.13416748,657.17,656.83,1.351]
[1750151293841,3.95339476,657.17,656.83,1.351]
[1750151294038,2.81922728,657.16,656.83,1.351]
[1750151294239,0.55458894,657.15,656.83,1.351]
[1750151294643,2.81922728,657.15,656.83,1.351]
[1750151294844,2.81922728,657.14,656.83,1.351]
[1750151295044,2.81922728,657.13,656.83,1.351]
[1750151295343,1.54166543,657.12,656.83,1.351]
[1750151295540,2.81914611,657.21,656.83,1.351]
[1750151295751,1.54166543,657.2,656.83,1.351]
[1750151296044,2.67583291,657.2,656.83,1.351]
[1750151296244,1.83206962,657.19,656.83,1.351]
[1750151296442,0.55458894,657.19,656.83,1.351]
[1750151296741,2.81864843,657.19,656.83,1.351]
[1750151296944,1.5413669,657.18,656.83,1.351]
[1750151297240,2.81864843,657.18,656.83,1.351]
[1750151297547,0.55444442,657.17,656.83,1.351]
[1750151298242,1.13416748,657.14,656.83,1.351]
[1750151298443,2.12108996,657.13,656.83,1.351]
[1750151298644,2.81833123,657.12,656.83,1.351]
[1750151298840,2.81833123,657.11,656.83,1.351]
[1750151299046,2.81833123,657.1,656.83,1.351]
[1750151299341,1.27696433,657.1,656.83,1.351]
[1750151299543,0.98656764,657.1,656.83,1.351]
[1750151299841,2.81777042,657.1,656.83,1.351]
[1750151300046,1.83120278,657.09,656.83,1.351]
[1750151300348,1.54080609,657.09,656.83,1.351]
[1750151300547,2.81777042,657.09,656.83,1.351]
[1750151300762,2.81777042,657.08,656.83,1.351]
[1750151301043,2.81777042,657.07,656.83,1.351]
[1750151301345,2.81777042,657.06,656.83,1.351]
[1750151301545,2.81777042,657.05,656.83,1.351]
[1750151301741,2.81777042,657.04,656.83,1.351]
[1750151301945,2.81777042,657.03,656.83,1.351]
[1750151302148,2.81777042,657.02,656.83,1.351]
[1750151302344,1.54080609,657.01,656.83,1.351]
[1750151302542,2.81599941,657.13,656.83,1.351]
[1750151302745,2.81599941,657.12,656.83,1.351]
[1750151302946,2.81599941,657.11,656.83,1.351]
[1750151303146,1.1321515,657.15,656.83,1.351]
[1750151303147,2.81599941,657.1,656.83,1.351]
[1750151303348,2.81599941,657.09,656.83,1.351]
[1750151303543,1.1321515,657.15,656.83,1.351]
[1750151303544,2.81599941,657.08,656.83,1.351]
[1750151303862,2.81599941,657.07,656.83,1.351]
[1750151304043,2.81599941,657.06,656.83,1.351]
[1750151304348,2.81599941,657.05,656.83,1.351]
[1750151304544,2.81599941,657.04,656.83,1.351]
[1750151304743,2.81599941,657.03,656.83,1.351]
[1750151305043,2.81599941,657.02,656.83,1.351]
[1750151305248,1.53969852,657.01,656.83,1.351]
[1750151305548,2.81518732,657.14,656.83,1.351]
[1750151305848,1.53969852,657.13,656.83,1.351]
[1750151306043,0.98601453,657.12,656.83,1.351]
[1750151306246,0.98601453,657.11,656.83,1.351]
[1750151306443,0.98601453,657.1,656.83,1.351]
[1750151306649,0.98601453,657.12,656.83,1.351]
[1750151306845,0.98601453,657.11,656.83,1.351]
[1750151307044,0.98601453,657.1,656.83,1.351]
[1750151307245,0.98601453,657.09,656.83,1.351]
[1750151307448,0.98601453,657.12,656.83,1.351]
[1750151307645,0.98601453,657.11,656.83,1.351]
[1750151307852,0.98601453,657.1,656.83,1.351]
[1750151308051,0.98522189,657.09,656.83,1.351]
[1750151308251,0.55348364,657.13,656.83,1.351]
[1750151308446,0.9852245,657.12,656.83,1.351]
[1750151308650,0.9852245,657.11,656.83,1.351]
[1750151308953,0.9852245,657.1,656.83,1.351]
[1750151309252,0.9852245,657.09,656.83,1.351]
[1750151309452,2.81373674,657.1,656.83,1.351]
[1750151309651,2.81373674,657.09,656.83,1.351]
[1750151309849,2.81373674,657.08,656.83,1.351]
[1750151310054,2.81373674,657.07,656.83,1.351]
[1750151310252,2.81373674,657.06,656.83,1.351]
[1750151310554,2.81373674,657.05,656.83,1.351]
[1750151310749,2.81373674,657.04,656.83,1.351]
[1750151310951,2.80926047,657.03,656.83,1.351]
[1750151311149,1.53712726,657.02,656.83,1.351]
[1750151311359,3.94139667,657.17,656.83,1.351]
[1750151311652,2.80924517,657.16,656.83,1.351]
[1750151311963,2.80924517,657.15,656.83,1.351]
[1750151312255,2.80924517,657.14,656.83,1.351]
[1750151312450,2.80924517,657.13,656.83,1.351]
[1750151312655,2.80924517,657.12,656.83,1.351]
[1750151312852,2.80924517,657.11,656.83,1.351]
[1750151313052,2.80924517,657.1,656.83,1.351]
[1750151313252,2.80924517,657.09,656.83,1.351]
[1750151313452,2.80924517,657.08,656.83,1.351]
[1750151313651,2.80848355,657.07,656.83,1.351]
[1750151313853,2.80848355,657.06,656.83,1.351]
[1750151314054,2.80848355,657.05,656.83,1.351]
[1750151314276,1.53670276,657.04,656.83,1.351]
[1750151314459,2.80847389,657.19,656.83,1.351]
[1750151314661,3.11280451,657.18,656.83,1.351]
[1750151314857,3.11280914,657.17,656.83,1.351]
[1750151315058,3.11281377,657.16,656.83,1.351]
[1750151315260,2.80847389,657.15,656.83,1.351]
[1750151315560,2.80847389,657.14,656.83,1.351]
[1750151315756,2.80847389,657.13,656.83,1.351]
[1750151316056,2.80847389,657.12,656.83,1.351]
[1750151316263,2.80819588,657.11,656.83,1.351]
[1750151316459,2.80819588,657.1,656.83,1.351]
[1750151316660,2.80819588,657.09,656.83,1.351]
[1750151316858,2.80819588,657.08,656.83,1.351]
[1750151317056,2.80819588,657.07,656.83,1.351]
[1750151317258,1.53670276,657.06,656.83,1.351]
[1750151317458,0.98363347,657.15,656.83,1.351]
[1750151317657,0.98363347,657.14,656.83,1.351]
[1750151317856,0.30433988,657.16,656.83,1.351]
[1750151318263,1.84104264,657.16,656.83,1.351]
[1750151318459,0.30433988,657.16,656.83,1.351]
[1750151320462,1.84096395,657.16,656.83,1.351]
[1750151320762,0.98358093,657.15,656.84,1.006]
[1750151321560,0.30433988,657.16,656.84,1.006]
[1750151321762,0.98358093,657.15,656.84,1.006]
[1750151322559,0.30434914,657.14,656.84,1.006]
[1750151322958,0.30434914,657.14,656.85,1.427]
[1750151323258,1.84099054,657.14,656.85,1.427]
[1750151323460,0.30434914,657.14,656.85,1.427]
[1750151326560,3.11334794,657.14,656.85,1.427]
[1750151326761,2.8089988,657.13,656.85,1.427]
[1750151326961,0.55312076,657.12,656.85,1.427]
[1750151327159,0.30434914,657.14,656.85,1.427]
[1750151329560,3.1145103,657.14,656.85,1.427]
[1750151329765,2.81016116,657.13,656.85,1.427]
[1750151329966,0.55339425,657.12,656.85,1.427]
[1750151330162,0.30434914,657.14,656.85,1.427]
[1750151335061,3.11853372,657.14,656.85,1.427]
[1750151335260,2.81418458,657.13,656.85,1.427]
[1750151335462,1.82857292,657.12,656.85,1.427]
[1750151335663,0.55418687,657.12,656.85,1.427]
[1750151335861,0.98561166,657.13,656.85,1.427]
[1750151335862,0.30434914,657.14,656.85,1.427]
[1750151336066,1.84583196,657.14,656.85,1.427]
[1750151336266,0.30434914,657.14,656.85,1.427]
[1750151336668,1.84583196,657.14,656.85,1.427]
[1750151337267,1.84583196,657.14,656.86,1.01]
[1750151338465,3.12161301,657.14,656.86,1.01]
[1750151338664,1.83344293,657.13,656.86,1.01]
[1750151338992,0.9882278,657.12,656.86,1.01]
[1750151339170,0.9882278,657.11,656.87,0.885]
[1750151339469,0.9882278,657.1,656.87,0.885]
[1750151339665,0.9882278,657.09,656.87,0.885]
[1750151339963,0.9882278,657.08,656.87,0.885]
[1750151340169,0.9882278,657.07,656.87,0.885]
[1750151340372,0.9882278,657.06,656.87,0.885]
[1750151340573,1.1321515,657.01,656.87,0.885]
[1750151340769,0.9882278,657.0,656.87,0.885]
[1750151341083,0.9882278,656.99,656.87,0.885]
[1750151341268,0.9882278,656.98,656.87,0.885]
[1750151341470,0.98780126,656.97,656.87,0.885]
[1750151341670,0.98780126,656.96,656.87,0.885]
[1750151341871,0.98780126,656.97,656.87,0.885]
[1750151342071,0.98780126,656.96,656.87,0.885]
[1750151342272,0.98780126,656.95,656.87,0.885]
[1750151342472,0.98780126,656.97,656.87,0.885]
[1750151342873,0.98749588,656.97,656.87,0.885]
[1750151343474,0.98749588,656.96,656.87,0.885]
[1750151343676,0.98749588,656.95,656.87,0.885]
[1750151343871,0.98749588,656.96,656.87,0.885]
[1750151344076,0.98759331,656.95,656.87,0.885]
[1750151344279,0.98753064,656.96,656.87,0.885]
[1750151345075,0.98753064,656.95,656.87,0.885]
[1750151345484,2.82485487,656.97,656.87,0.885]
[1750151345780,2.82485487,656.96,656.87,0.885]
[1750151345979,2.82485487,656.95,656.87,0.885]
[1750151346275,2.82485487,656.94,656.87,0.885]
[1750151346474,2.82485487,656.93,656.87,0.885]
[1750151346675,2.26941682,656.92,656.87,0.885]
[1750151346874,2.8251597,656.91,656.87,0.885]
[1750151347076,1.54316676,656.9,656.87,0.885]
[1750151347275,2.82509619,656.98,656.87,0.885]
[1750151347476,1.54316676,656.97,656.87,0.885]
[1750151347676,2.82509619,656.97,656.87,0.885]